fUST/lending_fUST_20250228
["ID","MTS","AMOUNT","RATE_DAILY","PERIOD"]
[354788752,1740697841216,-20488.44529323,0.00067001,120]
[354788767,1740697843396,-397.0,0.00058656,2]
[354788768,1740697843406,-397.0,0.00061656,2]
[354788769,1740697843415,-1490.49999999,0.00067001,120]
[354788770,1740697843427,-33576.05470678,0.00067001,120]
[354788771,1740697843437,-150.0,0.00068389,2]
[354788772,1740697843446,-846.56,0.00068493,2]
[354788773,1740697843455,-666.0,0.00068493,120]
[354788774,1740697843465,-1000.0,0.00068493,2]
[354788775,1740697843474,-1753.84,0.000685,30]
[354788776,1740697843483,-22674.65769109,0.00068604,2]
[354788777,1740697843493,-2000.0,0.000693,95]
[354788778,1740697843502,-534.44,0.000693,30]
[354788779,1740697843511,-800.0,0.00069349,120]
[354788780,1740697843520,-4000.0,0.000695,120]
[354788781,1740697843530,-4000.0,0.000695,120]
[354788782,1740697843541,-4000.0,0.000695,120]
[354788783,1740697843550,-4000.0,0.000695,120]
[354788784,1740697843562,-4000.0,0.000695,120]
[354788785,1740697843572,-4000.0,0.000695,120]
[354788786,1740697843582,-4000.0,0.000695,120]
[354788787,1740697843592,-4000.0,0.000695,120]
[354788788,1740697843602,-3868.0,0.000695,120]
[354788789,1740697843611,-297.70792967,0.00069999,31]
[354788790,1740697843621,-249.19979379,0.00069999,120]
[354788791,1740697843631,-223.62581278,0.0007,2]
[354788792,1740697843640,-4998.88215612,0.0007,120]
[354788793,1740697843650,-4344.25534832,0.0007,30]
[354788794,1740697843659,-4344.25534832,0.0007,30]
[354788795,1740697843668,-717.0,0.000703,97]
[354788796,1740697843678,-160.0,0.00070722,4]
[354788797,1740697843687,-891.34,0.000708,30]
[354788798,1740697843697,-1000.0,0.00070852,14]
[354788799,1740697843706,-1000.0,0.00071232,2]
[354788800,1740697843715,-993.0,0.00071233,120]
[354788801,1740697843725,-993.0,0.00071233,120]
[354788802,1740697843735,-993.0,0.00071233,120]
[354788803,1740697843744,-993.0,0.00071233,120]
[354788804,1740697843753,-993.0,0.00071233,120]
[354788805,1740697843763,-993.0,0.00071233,120]
[354788806,1740697843772,-993.0,0.00071233,120]
[354788807,1740697843782,-993.0,0.00071233,120]
[354788808,1740697843793,-993.0,0.00071233,120]
[354788809,1740697843803,-993.0,0.00071233,120]
[354788810,1740697843812,-993.0,0.00071233,120]
[354788811,1740697843822,-993.0,0.00071233,120]
[354788812,1740697843832,-993.0,0.00071233,120]
[354788813,1740697843842,-267.0,0.00071233,120]
[354788814,1740697843851,-267.0,0.00071233,120]
[354788815,1740697843860,-267.0,0.00071233,120]
[354788816,1740697843869,-267.0,0.00071233,120]
[354788817,1740697843879,-267.0,0.00071233,120]
[354788818,1740697843889,-267.0,0.00071233,120]
[354788819,1740697843899,-267.0,0.00071233,120]
[354788820,1740697843909,-267.0,0.00071233,120]
[354788821,1740697843920,-267.0,0.00071233,120]
[354788822,1740697843930,-267.0,0.00071233,120]
[354788823,1740697843939,-267.0,0.00071233,120]
[354788824,1740697843949,-267.0,0.00071233,120]
[354788825,1740697843959,-267.0,0.00071233,120]
[354788826,1740697843968,-993.0,0.00071233,120]
[354788827,1740697843978,-993.0,0.00071233,120]
[354788828,1740697843987,-993.0,0.00071233,120]
[354788829,1740697843996,-993.0,0.00071233,120]
[354788830,1740697844006,-993.0,0.00071233,120]
[354788831,1740697844016,-993.0,0.00071233,120]
[354788832,1740697844025,-993.0,0.00071233,120]
[354788833,1740697844035,-993.0,0.00071233,120]
[354788834,1740697844044,-993.0,0.00071233,120]
[354788835,1740697844053,-993.0,0.00071233,120]
[354788836,1740697844063,-993.0,0.00071233,120]
[354788837,1740697844071,-993.0,0.00071233,120]
[354788838,1740697844081,-993.0,0.00071233,120]
[354788839,1740697844090,-993.0,0.00071233,120]
[354788840,1740697844100,-267.0,0.00071233,120]
[354788841,1740697844109,-267.0,0.00071233,120]
[354788842,1740697844118,-267.0,0.00071233,120]
[354788843,1740697844127,-267.0,0.00071233,120]
[354788844,1740697844138,-267.0,0.00071233,120]
[354788845,1740697844148,-267.0,0.00071233,120]
[354788846,1740697844158,-267.0,0.00071233,120]
[354788847,1740697844167,-267.0,0.00071233,120]
[354788848,1740697844176,-267.0,0.00071233,120]
[354788849,1740697844185,-267.0,0.00071233,120]
[354788850,1740697844195,-267.0,0.00071233,120]
[354788851,1740697844204,-267.0,0.00071233,120]
[354788852,1740697844214,-267.0,0.00071233,120]
[354788853,1740697844223,-267.0,0.00071233,120]
[354788854,1740697844233,-993.0,0.00071233,120]
[354788855,1740697844242,-993.0,0.00071233,120]
[354788856,1740697844251,-993.0,0.00071233,120]
[354788857,1740697844263,-993.0,0.00071233,120]
[354788858,1740697844273,-993.0,0.00071233,120]
[354788859,1740697844283,-993.0,0.00071233,120]
[354788860,1740697844293,-993.0,0.00071233,120]
[354788861,1740697844303,-993.0,0.00071233,120]
[354788862,1740697844313,-993.0,0.00071233,120]
[354788863,1740697844324,-993.0,0.00071233,120]
[354788864,1740697844334,-993.0,0.00071233,120]
[354788865,1740697844345,-993.0,0.00071233,120]
[354788866,1740697844355,-993.0,0.00071233,120]
[354788867,1740697844364,-993.0,0.00071233,120]
[354788868,1740697844373,-160.61099614,0.00071233,120]
[354788869,1740697844445,-106.38900386,0.00071233,120]
[354788870,1740697844454,-259.14237271,0.00071233,120]
[354788877,1740697846872,-7.85762729,0.00071233,120]
[354788878,1740697846882,-267.0,0.00071233,120]
[354788879,1740697846893,-267.0,0.00071233,120]
[354788880,1740697846901,-267.0,0.00071233,120]
[354788881,1740697846911,-267.0,0.00071233,120]
[354788882,1740697846920,-267.0,0.00071233,120]
[354788883,1740697846930,-267.0,0.00071233,120]
[354788884,1740697846939,-267.0,0.00071233,120]
[354788885,1740697846948,-267.0,0.00071233,120]
[354788886,1740697846958,-267.0,0.00071233,120]
[354788887,1740697846967,-267.0,0.00071233,120]
[354788888,1740697846976,-267.0,0.00071233,120]
[354788889,1740697846985,-267.0,0.00071233,120]
[354788890,1740697846994,-3126.14237271,0.00071817,91]
[354788891,1740697847010,-5469.48827604,0.00071817,91]
[354788892,1740697847019,-11428.79112396,0.00071817,63]
[354788900,1740698743105,-205.723303,0.00032877,2]
[354788901,1740698743126,-300.0,0.00045612,5]
[354788902,1740698743148,-14607.5917245,0.00045613,2]
[354788903,1740698743169,-2171.27641598,0.00049115,120]
[354788904,1740698743190,-1375.00574946,0.00049215,28]
[354788905,1740698743211,-500.0,0.00049315,120]
[354788906,1740698743232,-500.0,0.00049315,120]
[354788907,1740698743252,-500.0,0.00049315,120]
[354788908,1740698743273,-351.37715922,0.00049315,120]
[354788909,1740698743293,-500.0,0.00049315,120]
[354788910,1740698743313,-500.0,0.00049315,120]
[354788911,1740698743333,-500.0,0.00049315,120]
[354788912,1740698743353,-500.0,0.00049315,120]
[354788913,1740698743375,-500.0,0.00049315,120]
[354788914,1740698743396,-500.0,0.00049315,120]
[354788915,1740698743416,-500.0,0.00049315,120]
[354788916,1740698743436,-500.0,0.00049315,120]
[354788917,1740698743457,-500.0,0.00049315,120]
[354788918,1740698743476,-500.0,0.00049315,120]
[354788919,1740698743496,-500.0,0.00049315,120]
[354788920,1740698743516,-501.03464938,0.00049315,120]
[354788921,1740698743538,-500.0,0.00049315,120]
[354788922,1740698743562,-392.05820503,0.00049315,120]
[354788923,1740698743586,-500.0,0.00049315,120]
[354788924,1740698743612,-500.0,0.00049315,120]
[354788925,1740698743640,-500.0,0.00049315,120]
[354788926,1740698743667,-500.0,0.00049315,120]
[354788927,1740698743689,-500.0,0.00049315,120]
[354788928,1740698743713,-500.0,0.00049315,2]
[354788929,1740698743737,-561.17,0.00049315,120]
[354788930,1740698743760,-500.0,0.00049315,120]
[354788931,1740698743785,-500.0,0.00049315,120]
[354788932,1740698743809,-500.0,0.00049315,120]
[354788933,1740698743834,-500.0,0.00049315,120]
[354788934,1740698743858,-500.0,0.00049315,120]
[354788935,1740698743882,-154.92,0.00049315,30]
[354788936,1740698743908,-160.0,0.00049578,2]
[354788937,1740698743933,-500.0,0.00049589,120]
[354788938,1740698743957,-500.0,0.00049589,120]
[354788939,1740698743981,-500.0,0.00049589,120]
[354788940,1740698744006,-500.0,0.00049589,2]
[354788941,1740698744030,-239.26213438,0.00049589,120]
[354788942,1740698744056,-500.0,0.00049897,6]
[354788943,1740698744083,-211.34092594,0.000499,11]
[354788944,1740698744106,-302.0,0.00051898,30]
[354788945,1740698744137,-540.55,0.000524,51]
[354788946,1740698744165,-540.55,0.000524,51]
[354788947,1740698744193,-540.55,0.000524,51]
[354788948,1740698744224,-540.55,0.000524,51]
[354788949,1740698744252,-540.55,0.000524,51]
[354788950,1740698744281,-540.55,0.000524,51]
[354788951,1740698744310,-540.55,0.000524,51]
[354788952,1740698744340,-540.55,0.000524,51]
[354788953,1740698744368,-540.55,0.000524,51]
[354788954,1740698744400,-540.55,0.000524,51]
[354788955,1740698744429,-540.55,0.000524,51]
[354788956,1740698744458,-540.55,0.000524,51]
[354788957,1740698744483,-1394.96,0.000526,2]
[354788958,1740698744505,-179.55112219,0.00053321,47]
[354788959,1740698744527,-205.723303,0.00054795,2]
[354788960,1740698744550,-500.0,0.00055378,120]
[354788961,1740698744571,-323.63341158,0.00055378,120]
[354788962,1740698744595,-500.0,0.00055378,120]
[354788963,1740698744618,-500.0,0.00055378,120]
[354788964,1740698744646,-500.0,0.00055378,120]
[354788965,1740698744669,-500.0,0.00055378,120]
[354788966,1740698744691,-500.0,0.00055378,120]
[354788967,1740698744712,-500.0,0.00055378,120]
[354788968,1740698744735,-500.0,0.00055378,120]
[354788969,1740698744757,-500.0,0.00055378,120]
[354788970,1740698744780,-500.0,0.00055378,120]
[354788971,1740698744802,-500.0,0.00055378,120]
[354788972,1740698744824,-500.0,0.00055378,120]
[354788973,1740698744846,-500.0,0.00055378,120]
[354788974,1740698744868,-286.37,0.00055378,120]
[354788975,1740698744891,-500.0,0.00055378,120]
[354788976,1740698744917,-500.0,0.00055378,120]
[354788977,1740698744943,-500.0,0.00055378,120]
[354788978,1740698744967,-150.0,0.00055581,2]
[354788979,1740698744990,-500.0,0.00055652,120]
[354788980,1740698745014,-636.36,0.00055652,120]
[354788981,1740698745037,-600.0,0.00062646,120]
[354788982,1740698745062,-600.0,0.00064195,120]
[354788983,1740698745088,-500.0,0.00064799,120]
[354788984,1740698745111,-7770.06,0.00064799,120]
[354788985,1740698745135,-30406.3704565,0.000649,2]
[354788986,1740698745160,-732.28397462,0.00065096,120]
[354788987,1740698745184,-428.77155805,0.00065153,119]
[354788988,1740698745209,-600.0,0.00066046,120]
[354788989,1740698745232,-600.0,0.00066183,120]
[354788990,1740698745255,-500.0,0.00068423,120]
[354788991,1740698745277,-666.0,0.00068493,120]
[354788992,1740698745454,-600.0,0.00068539,120]
[354788993,1740698745482,-288.05,0.00070239,10]
[354788994,1740698745502,-549.29,0.00070269,10]
[354788995,1740698745524,-7770.06,0.00070279,120]
[354788996,1740698745546,-22674.65769109,0.0007052,2]
[354788997,1740698745567,-20074.49119861,0.00071111,120]
[354788998,1740698745591,-30406.3704565,0.00071223,4]
[354788999,1740698745613,-206.22245354,0.00071232,120]
[354789000,1740698745636,-500.0,0.00071232,2]
[354789001,1740698745659,-344.51511807,0.00071232,2]
[354789002,1740698745682,-577.0,0.00071233,120]
[354789003,1740698745703,-577.0,0.00071233,120]
[354789004,1740698745723,-577.0,0.00071233,120]
[354789005,1740698745743,-577.0,0.00071233,120]
[354789006,1740698745764,-577.0,0.00071233,120]
[354789007,1740698745784,-577.0,0.00071233,120]
[354789008,1740698745806,-577.0,0.00071233,120]
[354789009,1740698745827,-577.0,0.00071233,120]
[354789010,1740698745848,-577.0,0.00071233,120]
[354789011,1740698745869,-577.0,0.00071233,120]
[354789012,1740698745890,-577.0,0.00071233,120]
[354789013,1740698745911,-577.0,0.00071233,120]
[354789014,1740698745933,-577.0,0.00071233,120]
[354789015,1740698745955,-577.0,0.00071233,120]
[354789016,1740698745977,-155.0,0.00071233,120]
[354789017,1740698745997,-155.0,0.00071233,120]
[354789018,1740698746019,-155.0,0.00071233,120]
[354789019,1740698746039,-155.0,0.00071233,120]
[354789020,1740698746062,-155.0,0.00071233,120]
[354789021,1740698746083,-155.0,0.00071233,120]
[354789022,1740698746104,-155.0,0.00071233,120]
[354789023,1740698746126,-155.0,0.00071233,120]
[354789024,1740698746149,-155.0,0.00071233,120]
[354789025,1740698746171,-155.0,0.00071233,120]
[354789026,1740698746192,-155.0,0.00071233,120]
[354789027,1740698746215,-155.0,0.00071233,120]
[354789028,1740698746237,-155.0,0.00071233,120]
[354789029,1740698746259,-155.0,0.00071233,120]
[354789030,1740698746281,-577.0,0.00071233,120]
[354789031,1740698746301,-577.0,0.00071233,120]
[354789032,1740698746322,-577.0,0.00071233,120]
[354789033,1740698746343,-577.0,0.00071233,120]
[354789034,1740698746365,-577.0,0.00071233,120]
[354789035,1740698746386,-577.0,0.00071233,120]
[354789036,1740698746407,-577.0,0.00071233,120]
[354789037,1740698746429,-577.0,0.00071233,120]
[354789038,1740698746451,-577.0,0.00071233,120]
[354789039,1740698746474,-577.0,0.00071233,120]
[354789040,1740698746496,-577.0,0.00071233,120]
[354789041,1740698746519,-577.0,0.00071233,120]
[354789042,1740698746544,-577.0,0.00071233,120]
[354789043,1740698746567,-577.0,0.00071233,120]
[354789044,1740698746589,-155.0,0.00071233,120]
[354789045,1740698746610,-155.0,0.00071233,120]
[354789046,1740698746633,-155.0,0.00071233,120]
[354789047,1740698746657,-155.0,0.00071233,120]
[354789048,1740698746678,-155.0,0.00071233,120]
[354789049,1740698746699,-155.0,0.00071233,120]
[354789050,1740698746719,-155.0,0.00071233,120]
[354789051,1740698746741,-155.0,0.00071233,120]
[354789052,1740698746762,-155.0,0.00071233,120]
[354789053,1740698746783,-155.0,0.00071233,120]
[354789054,1740698746804,-155.0,0.00071233,120]
[354789055,1740698746825,-155.0,0.00071233,120]
[354789056,1740698746846,-155.0,0.00071233,120]
[354789057,1740698746867,-155.0,0.00071233,120]
[354789058,1740698746888,-577.0,0.00071233,120]
[354789059,1740698746908,-577.0,0.00071233,120]
[354789060,1740698746929,-577.0,0.00071233,120]
[354789061,1740698746950,-577.0,0.00071233,120]
[354789062,1740698746971,-577.0,0.00071233,120]
[354789063,1740698746993,-577.0,0.00071233,120]
[354789064,1740698747015,-577.0,0.00071233,120]
[354789065,1740698747037,-577.0,0.00071233,120]
[354789066,1740698747059,-577.0,0.00071233,120]
[354789067,1740698747080,-577.0,0.00071233,120]
[354789068,1740698747102,-577.0,0.00071233,120]
[354789069,1740698747125,-577.0,0.00071233,120]
[354789070,1740698747147,-577.0,0.00071233,120]
[354789071,1740698747170,-577.0,0.00071233,120]
[354789072,1740698747191,-155.0,0.00071233,120]
[354789073,1740698747213,-155.0,0.00071233,120]
[354789074,1740698747234,-155.0,0.00071233,120]
[354789075,1740698747254,-155.0,0.00071233,120]
[354789076,1740698747276,-155.0,0.00071233,120]
[354789077,1740698747297,-155.0,0.00071233,120]
[354789078,1740698747318,-155.0,0.00071233,120]
[354789079,1740698747339,-155.0,0.00071233,120]
[354789080,1740698747360,-155.0,0.00071233,120]
[354789081,1740698747381,-155.0,0.00071233,120]
[354789082,1740698747402,-155.0,0.00071233,120]
[354789083,1740698747422,-155.0,0.00071233,120]
[354789084,1740698747442,-155.0,0.00071233,120]
[354789085,1740698747463,-155.0,0.00071233,120]
[354789086,1740698747484,-577.0,0.00071233,120]
[354789087,1740698747505,-577.0,0.00071233,120]
[354789088,1740698747527,-577.0,0.00071233,120]
[354789089,1740698747550,-577.0,0.00071233,120]
[354789090,1740698747572,-577.0,0.00071233,120]
[354789091,1740698747594,-577.0,0.00071233,120]
[354789092,1740698747616,-577.0,0.00071233,120]
[354789093,1740698747642,-577.0,0.00071233,120]
[354789094,1740698747664,-577.0,0.00071233,120]
[354789095,1740698747686,-577.0,0.00071233,120]
[354789096,1740698747707,-577.0,0.00071233,120]
[354789097,1740698747729,-577.0,0.00071233,120]
[354789098,1740698747751,-577.0,0.00071233,120]
[354789099,1740698747775,-577.0,0.00071233,120]
[354789100,1740698747797,-155.0,0.00071233,120]
[354789101,1740698747818,-155.0,0.00071233,120]
[354789102,1740698747839,-155.0,0.00071233,120]
[354789103,1740698747860,-155.0,0.00071233,120]
[354789104,1740698747882,-155.0,0.00071233,120]
[354789105,1740698747903,-155.0,0.00071233,120]
[354789106,1740698747923,-155.0,0.00071233,120]
[354789107,1740698747945,-155.0,0.00071233,120]
[354789108,1740698747966,-155.0,0.00071233,120]
[354789109,1740698747986,-155.0,0.00071233,120]
[354789110,1740698748007,-155.0,0.00071233,120]
[354789111,1740698748028,-155.0,0.00071233,120]
[354789112,1740698748051,-155.0,0.00071233,120]
[354789113,1740698748074,-155.0,0.00071233,120]
[354789114,1740698748096,-405.4260184,0.00071233,120]
[354789115,1740698748117,-502.52233714,0.00071233,120]
[354789116,1740698748139,-25255.40041613,0.000713,30]
[354789117,1740698757085,-497.87901862,0.00071,120]
[354789118,1740698757106,-577.0,0.00071233,120]
[354789119,1740698757127,-577.0,0.00071233,120]
[354789120,1740698757252,-577.0,0.00071233,120]
[354789121,1740698757273,-577.0,0.00071233,120]
[354789122,1740698757294,-577.0,0.00071233,120]
[354789123,1740698757314,-577.0,0.00071233,120]
[354789124,1740698757334,-577.0,0.00071233,120]
[354789125,1740698757355,-577.0,0.00071233,120]
[354789126,1740698757375,-577.0,0.00071233,120]
[354789127,1740698757396,-451.74835567,0.00071233,120]
[354789128,1740698834104,-2741.0,0.00049,120]
[354789129,1740698834126,-500.0,0.00049315,120]
[354789130,1740698834148,-500.0,0.00049315,120]
[354789131,1740698834170,-500.0,0.00049589,120]
[354789132,1740698834191,-500.0,0.00049863,120]
[354789133,1740698834221,-500.0,0.00050136,120]
[354789134,1740698834247,-500.0,0.0005041,120]
[354789135,1740698834268,-500.0,0.00050684,120]
[354789136,1740698834291,-558.64,0.00050958,120]
[354789137,1740698834314,-2741.0,0.00051,120]
[354789138,1740698834336,-500.0,0.00052399,120]
[354789139,1740698834358,-1255.46,0.000526,2]
[354789140,1740698834379,-500.0,0.00055378,120]
[354789141,1740698834401,-270.39,0.00055652,120]
[354789142,1740698834423,-500.0,0.00064799,120]
[354789143,1740698834446,-500.0,0.00064799,120]
[354789144,1740698834469,-500.0,0.00064899,120]
[354789145,1740698834492,-500.0,0.00064899,120]
[354789146,1740698834515,-159.2480632,0.00069807,120]
[354789147,1740698834536,-7155.8721398,0.0007052,2]
[354789148,1740698840091,-2741.0,0.00053,120]
[354789149,1740698840114,-2741.0,0.00055,120]
[354789150,1740698840138,-2741.0,0.00057,120]
[354789151,1740698840162,-20600.61736574,0.0007052,2]
[354789152,1740698840190,-153.0,0.00071233,120]
[354789153,1740698840213,-153.0,0.00071233,120]
[354789154,1740698840237,-153.0,0.00071233,120]
[354789155,1740698840259,-153.0,0.00071233,120]
[354789156,1740698840281,-153.0,0.00071233,120]
[354789157,1740698840303,-153.0,0.00071233,120]
[354789158,1740698840325,-153.0,0.00071233,120]
[354789159,1740698840347,-153.0,0.00071233,120]
[354789160,1740698840368,-153.0,0.00071233,120]
[354789161,1740698840389,-153.0,0.00071233,120]
[354789162,1740698840410,-153.0,0.00071233,120]
[354789163,1740698840432,-153.0,0.00071233,120]
[354789164,1740698840454,-153.0,0.00071233,120]
[354789165,1740698840476,-153.0,0.00071233,120]
[354789166,1740698840498,-2200.0,0.00071233,120]
[354789167,1740698840521,-500.0,0.00071288,120]
[354789168,1740698840543,-500.0,0.00071289,120]
[354789169,1740698840565,-500.0,0.00071299,120]
[354789170,1740698840590,-500.0,0.00071299,120]
[354789171,1740698840611,-7943.21958387,0.000713,30]
[354789172,1740698840641,-177.74,0.000713,60]
[354789173,1740698840662,-666.0,0.00071806,120]
[354789174,1740698840683,-500.0,0.00072069,7]
[354789175,1740698840704,-457.74,0.0007219,10]
[354789176,1740698840726,-381.45,0.0007219,10]
[354789177,1740698840751,-208.39555077,0.00072199,31]
[354789178,1740698840774,-174.43985565,0.00072199,120]
[354789179,1740698840795,-338781.48658667,0.000722,30]
[354789180,1740698910254,1264.69886397,0.00051898,90]
[354789181,1740698912497,-150.0,0.00029,2]
[354789182,1740698917128,177.86821698,0.00051898,30]
[354789183,1740698921045,-150.0,0.00029,2]
[354789184,1740698932698,-150.0,0.00029,2]
[354789185,1740698933843,-150.0,0.00029,2]
[354789186,1740698935011,-150.0,0.00029,2]
[354789187,1740698941077,-150.0,0.00029,2]
[354789188,1740698942670,-150.0,0.00029,2]
[354789189,1740698946308,-150.0,0.00029,2]
[354789190,1740698947418,-150.0,0.00029,2]
[354789191,1740698950992,-150.0,0.00029,2]
[354789192,1740698952049,-150.0,0.00029,2]
[354789193,1740698955852,-150.0,0.00029,2]
[354789194,1740698962498,-150.0,0.00029,2]
[354789195,1740698966109,-150.0,0.00029,2]
[354789200,1740698972202,-150.0,0.00029,2]
[354789201,1740698976091,-150.0,0.00029,2]
[354789202,1740698982717,-150.0,0.00029,2]
[354789203,1740698983754,-150.0,0.00029,2]
[354789205,1740698984798,-150.0,0.00029,2]
[354789206,1740698988277,-150.0,0.00029,2]
[354789207,1740698989870,-150.0,0.00029,2]
[354789208,1740698990890,-150.0,0.00029,2]
[354789209,1740698994456,-150.0,0.00029,2]
[354789210,1740699000494,-150.0,0.00029,2]
[354789211,1740699001666,-150.0,0.00029,2]
[354789212,1740699002841,-150.0,0.00029,2]
[354789213,1740699004041,-150.0,0.00029,2]
[354789214,1740699005669,-150.0,0.00029,2]
[354789215,1740699007346,-150.0,0.00029,2]
[354789216,1740699008341,-150.0,0.00029,2]
[354789217,1740699010027,-150.0,0.00029,2]
[354789218,1740699013662,-150.0,0.00029,2]
[354789219,1740699015437,-150.0,0.00029,2]
[354789220,1740699016669,-150.0,0.00029,2]
[354789221,1740699023257,-150.0,0.00029,2]
[354789222,1740699029382,-150.0,0.00029,2]
[354789231,1740699033019,-150.0,0.00029,2]
[354789232,1740699034662,-150.0,0.00029,2]
[354789240,1740699040297,-8929.26378055,0.00029,2]
[354789241,1740699040307,-1737.02113276,0.000483,120]
[354789242,1740699040317,-322.86356062,0.000484,2]
[354789243,1740699040327,-500.0,0.00049315,120]
[354789245,1740699040337,-500.0,0.00049315,120]
[354789247,1740699040346,-500.0,0.00049315,120]
[354789249,1740699040356,-500.0,0.00049315,120]
[354789251,1740699040366,-500.0,0.00049315,120]
[354789253,1740699040375,-500.0,0.00049315,120]
[354789255,1740699040386,-500.0,0.00049315,120]
[354789257,1740699040395,-500.0,0.00049315,120]
[354789259,1740699040405,-500.0,0.00049315,120]
[354789260,1740699040414,-500.0,0.00049315,120]
[354789261,1740699040425,-500.0,0.00049315,120]
[354789262,1740699040435,-500.0,0.00049315,120]
[354789263,1740699040444,-500.0,0.00049315,120]
[354789264,1740699040454,-500.0,0.00049315,30]
[354789265,1740699040463,-500.0,0.00049315,120]
[354789266,1740699040473,-455.27,0.00049589,120]
[354789267,1740699040483,-500.0,0.00049589,120]
[354789268,1740699040493,-500.0,0.00049589,120]
[354789269,1740699040503,-500.0,0.00049589,120]
[354789270,1740699040513,-500.0,0.00049589,120]
[354789271,1740699040523,-252.44,0.00049589,120]
[354789272,1740699040533,-500.0,0.00049589,120]
[354789273,1740699040543,-500.0,0.00049589,120]
[354789274,1740699040552,-500.404269,0.00049589,120]
[354789275,1740699040562,-500.0,0.00049589,120]
[354789276,1740699040572,-500.0,0.00049589,120]
[354789277,1740699040581,-500.0,0.00049589,120]
[354789278,1740699040591,-282.09,0.00049589,120]
[354789279,1740699040600,-292.64,0.00049589,30]
[354789280,1740699040615,-500.0,0.00049589,120]
[354789281,1740699040769,-154.66,0.00049863,120]
[354789282,1740699040779,-500.0,0.00049863,120]
[354789283,1740699040789,-500.0,0.00049863,120]
[354789284,1740699040798,-500.0,0.00049863,120]
[354789285,1740699040808,-478.98,0.00049863,120]
[354789286,1740699040817,-279.75056622,0.00049863,120]
[354789299,1740699043632,-13.2903765,0.00049863,120]
[354789300,1740699043648,-206.95905728,0.00049863,120]
[354789301,1740699043658,-500.0,0.00049863,120]
[354789302,1740699043667,-500.0,0.00049863,120]
[354789303,1740699043677,-209.85471072,0.00049863,120]
[354789304,1740699043791,-290.14528928,0.00049863,120]
[354789305,1740699043800,-392.36886342,0.00049863,120]
[354789312,1740699047097,-627.7,0.00049315,120]
[354789313,1740699047105,-627.7,0.00049589,120]
[354789314,1740699047113,-107.63113658,0.00049863,120]
[354789315,1740699047121,-627.7,0.00049863,120]
[354789316,1740699047128,-385.00333042,0.000499,8]
[354789317,1740699047426,-19614.99666958,0.000499,8]
[354789318,1740699047436,-150.76470436,0.0004992,10]
[354789319,1740699047445,-500.0,0.0004992,7]
[354789320,1740699047455,-500.0,0.00050136,120]
[354789321,1740699047465,-500.0,0.00050136,120]
[354789322,1740699047475,-500.0,0.00050136,120]
[354789323,1740699047484,-500.0,0.00050136,120]
[354789324,1740699047494,-500.0,0.00050136,120]